Cogmind - Beta 17.1 @@@ ROGUE MODE // 2026.08.25 @ 21:16:21 Player: Boatmurdered Result: Destroyed by Y-54 Guardian with Gatling Laser Performance ------------- Evolutions (0) 0 Regions Visited (3) 600 Robots Destroyed (44) 220 Value Destroyed (627) 627 Prototype IDs (1) 20 Alien Tech Used (0) 0 Bonus (6800) 6800 TOTAL SCORE: 8267 Bonus ------- Prayed to X0-1V1 5000 Major X0-1V1 Interference 1800 Cogmind --------- Core Integrity 0/250 Matter 14/700 Energy 581/925 System Corruption 0% Temperature Cool (12) Movement Core (1450) Ox28 Location -7/Recycling Parts ------- > --- POWER (1) -------- Light Ion Engine > --- PROPULSION (1) --- (None) > --- UTILITY (3) ------ Huge Storage Unit X0-1V1's Piety Tracker > --- WEAPON (3) ------- Heavy Assault Rifle > --- INVENTORY (25) --- Light Ion Engine Light Treads Light Treads Disposable Heat Sink Disposable Heat Sink Disposable Heat Sink Disposable Heat Sink Improved Terrain Scanner Seismic Detector Seismic Detector Salvage Targeting Computer Light Armor Plating Light Armor Plating Improved Medium Armor Plating Light Assault Rifle Grenade Launcher Datajack Mining Laser Peak State ------------ > --- POWER ------------ Ion Engine > --- PROPULSION ------- Compact Wheel Compact Wheel > --- UTILITY ---------- Huge Storage Unit X0-1V1's Piety Tracker > --- WEAPON ----------- Autogun Autogun Autogun > --- INVENTORY -------- Light Ion Engine Light Treads Light Treads Disposable Heat Sink Disposable Heat Sink Disposable Heat Sink Disposable Heat Sink Improved Terrain Scanner Seismic Detector Seismic Detector Salvage Targeting Computer Light Armor Plating Light Armor Plating Light Assault Rifle Heavy Assault Rifle Heavy Assault Rifle Autogun Grenade Launcher Datajack Mining Laser [Rating: 26] Favorites ----------- Power Ion Engine Engine Ion Engine Propulsion Wheel Treads Light Treads Wheel Wheel Utility Huge Storage Unit Device Seismic Detector Storage Huge Storage Unit Weapon Autogun Energy Gun Particle Gun Ballistic Gun Autogun Launcher Grenade Launcher Special Weapon Mining Laser Special Melee Weapon Datajack Build | -11 -10 -10 -7 ------- Run | Yrd Mat Sub Rec Slots Evolved . | . . . . Power . | . . . . Propulsion . | . . . . Utility . | . . . . Weapon . | . . . . Parts Attached 28 | 7 13 5 3 Power 5 | 1 2 1 1 Engine 5 | 1 2 1 1 Core . | . . . . Reactor . | . . . . Propulsion 7 | 2 3 2 . Treads 2 | 2 . . . Leg . | . . . . Wheel 5 | . 3 2 . Hover . | . . . . Flight . | . . . . Utility 4 | 2 2 . . Device 2 | 1 1 . . Storage 2 | 1 1 . . Processor . | . . . . Hackware . | . . . . Protection . | . . . . Artifact . | . . . . Weapon 12 | 2 6 2 2 Energy Gun 1 | . 1 . . Energy Cannon . | . . . . Ballistic Gun 8 | 2 3 1 2 Ballistic Cannon . | . . . . Launcher 1 | . . 1 . Special Weapon 1 | . 1 . . Impact Weapon . | . . . . Slashing Weapon . | . . . . Piercing Weapon . | . . . . Special Melee Weapon 1 | . 1 . . Unidentified Prototypes 1 | . 1 . . Parts Lost 12 | . 2 3 7 Power 2 | . 1 . 1 Propulsion 4 | . 1 2 1 Utility . | . . . . Weapon 6 | . . 1 5 Highest Loss Streak 7 | . 2 2 7 To Critical Strikes . | . . . . Average Backups 13 | 3 13 23 20 Power . | . . . 1 Propulsion 1 | . 1 3 2 Utility 5 | . 4 10 10 Weapon 5 | 1 5 7 5 Tool/Special . | . . . . Unused Backups 14 | . 2 . 12 Power . | . . . . Propulsion . | . . . . Utility 10 | . . . 10 Weapon 4 | . 2 . 2 Tool/Special . | . . . . Average Slot Usage (%) 98 | . 99 94 93 Engine 13 | . 13 14 10 Treads 8 | . 10 . . Wheel 18 | . 17 22 23 Device 13 | . 14 14 12 Storage 13 | . 14 14 12 Energy Gun 1 | . 2 . . Ballistic Gun 25 | . 25 24 32 Peak Build Rating 26 | 7 24 24 26 Average Rating 11 | 6 10 23 24 On Entrance 13 | . 7 24 24 Avg Prop Armor Cover (%) . | . . . . Naked Turns . | . . . . Heaviest Build 95 | 14 92 92 95 Greatest Support 40 | 40 40 32 32 Greatest Overweight (x) 30 | . 4 30 5 Average Overweight (x) 3 | . 3 4 2 Largest Inventory Capacity 25 | 8 25 25 25 Average Capacity 22 | 7 24 25 25 Most Carried 24 | 5 23 24 22 Average Carried 13 | 3 13 23 20 Final Capacity 25 | 8 25 25 25 Final Carried 23 | 5 23 21 18 Class Distribution -------------------- 97% | Mutant Dominant Class ---------------- Mutant | -10/Materials Mutant | -10/Subcaves Gunner | -7/Recycling Resources | -11 -10 -10 -7 ----------- Run | Yrd Mat Sub Rec Matter Collected 1118 | 374 491 163 90 Remotely . | . . . . Salvage Created 1166 | 258 575 188 145 Parts 76 | 17 34 20 5 Haulers Intercepted 2 | . 2 . . Recyclers Shooed 5 | . 3 . 2 Parts Field Recycled . | . . . . Retrieved Matter . | . . . . Parts Self-Destructed 16 | . . 16 . Prevented . | . . . . Parts Restored . | . . . . Kills | -11 -10 -10 -7 ------- Run | Yrd Mat Sub Rec Combat Hostiles Destroyed 21 | . 10 11 . Guns 11 | . 10 1 . AOE 10 | . . 10 . Classes Destroyed 10 | 2 5 3 . Worker 4 | . 4 . . Tunneler 8 | 8 . . . Hauler 2 | . 2 . . Recycler 4 | 1 1 . 2 Turret 2 | . . 2 . Watcher 3 | . 3 . . Swarmer 13 | . 6 7 . Grunt 7 | . 4 3 . Cobbler 1 | . . 1 . Subdweller 1 | . . 1 . Best Kill Streak 4 | 1 4 4 1 Combat Bots Only 4 | . 3 4 . Max Kills in Single Turn 3 | 1 1 3 1 Gunslinging . | . . . . Exploded 3 | . . 3 . Melee . | . . . . Uniques/NPCs Destroyed . | . . . . Combat | -11 -10 -10 -7 -------- Run | Yrd Mat Sub Rec Hostile Shots Fired 242 | . 37 52 153 Missed 80 | . 5 20 55 Hits 162 | . 32 32 98 Projectile 162 | . 32 32 98 Damage Taken 1503 | . 361 346 796 Core 298 | . 57 74 167 Absorbed by Shields . | . . . . Regen/Repaired (Parts) 48 | . 48 . . Core Remaining (%) 100 | 100 . . . Volleys Fired 113 | 28 49 27 9 Largest 3 | 2 2 2 3 Hottest 100 | 40 100 46 69 Shots Fired 210 | 56 94 35 25 Gun 194 | 56 93 20 25 Cannon . | . . . . Launcher 15 | . . 15 . Special 1 | . 1 . . Kinetic 193 | 56 92 20 25 Thermal 2 | . 2 . . Explosive 15 | . . 15 . Electromagnetic . | . . . . Robot Hit Streak 13 | 8 10 13 10 Robot Miss Streak 8 | 2 8 4 2 Penetration Max . | . . . . Secondary Targets 1 | . . . 1 Max Gunslinging Chain 1 | . . . 1 Shots Hit Robots 121 | 33 47 21 20 Core Hits 69 | 11 25 28 5 Critical Kills . | . . . . Critical Parts Destroyed . | . . . . Critical Strikes . | . . . . Melee Attacks . | . . . . Impact . | . . . . Slashing . | . . . . Piercing . | . . . . Sneak Attacks . | . . . . Combat Hostiles . | . . . . Follow-up Attacks . | . . . . Damage Inflicted 2513 | 371 803 1024 315 Guns 1689 | 371 803 206 309 Cannons . | . . . . Explosions 818 | . . 818 . Melee . | . . . . Ramming 6 | . . . 6 Kinetic 1672 | 371 786 206 309 Thermal 17 | . 17 . . Explosive 818 | . . 818 . Electromagnetic . | . . . . Impact . | . . . . Slashing . | . . . . Piercing . | . . . . Highest Corruption 1 | . 1 1 . Average Corruption 1 | . 1 1 . Corruption Purged . | . . . . Corruption Blocked . | . . . . Effects 13 | . 13 . . Message Errors 4 | . 4 . . Matter Fused 1 | . 1 . . Energy Discharges 1 | . 1 . . Data Loss (minor) 4 | . 4 . . Data Loss (major) 1 | . 1 . . Misfires 1 | . 1 . . Alerts 1 | . 1 . . Overload Shots . | . . . . Overflow Damage . | . . . . Projectiles . | . . . . Explosions . | . . . . Melee . | . . . . Knockbacks . | . . . . Impact . | . . . . Kinetic . | . . . . Secondary . | . . . . Self-Inflicted Damage 91 | . . 89 2 Shots 5 | . . 5 . Rammed 2 | . . . 2 Targets Rammed 2 | . . . 2 Kicked . | . . . . Crushed . | . . . . Highest Temperature 108 | . 24 1 108 Average Temperature 17 | . 6 1 50 Received Heat Transfer 477 | . 78 159 240 Siege Activations . | . . . . Martial Activations . | . . . . Shielding Activations . | . . . . Robots Disrupted . | . . . . Combat Hostiles . | . . . . Robots Corrupted . | . . . . Combat Hostiles . | . . . . Parts Fried . | . . . . Impact Corruptions . | . . . . Robots Melted . | . . . . Combat Hostiles . | . . . . Parts Melted . | . . . . Heat Transferred 37 | . 37 . . Parts Sabotaged . | . . . . Parts Stolen . | . . . . Parts Stripped . | . . . . Power Chain Reactions . | . . . . Alert | -11 -10 -10 -7 ------- Run | Yrd Mat Sub Rec Maximum Alert Level 1 | . . . 1 Low Security (%) 96 | 100 100 . . Level 1 3 | . . . 100 Level 2 . | . . . . Level 3 . | . . . . Level 4 . | . . . . Level 5 . | . . . . High Security . | . . . . Max Security . | . . . . Peak Influence 301 | 5 121 . 301 Initial 175 | . . . 175 Average 24 | . 17 . 276 Influence Increases 1077 | 45 331 535 166 Destroy 0b10 Robot/C 480 | . 200 240 40 Destroy 0b10 Robot/NC 95 | 45 50 . . Destroy Leader 50 | . 40 10 . Successful Hack 10 | . 10 . . Disable Machine 15 | . 15 . . Destroy Structure 1 | . 1 . . Lose Combat Pursuer 300 | . 15 285 . Miscellaneous 126 | . . . 126 Influence Decreases 866 | 45 331 170 320 Entered New Map 190 | . . . 190 Time Decay 546 | 45 311 140 50 Lost Part 120 | . 20 30 70 Lost Ally 10 | . . . 10 Squads Dispatched 2 | . 1 . 1 Investigation 1 | . . . 1 Extermination . | . . . . Reinforcement 1 | . 1 . . Assault . | . . . . Garrison . | . . . . Intercept . | . . . . Searches Triggered . | . . . . Construction Impeded . | . . . . Haulers Reinforced . | . . . . Active Scanning Responses . | . . . . Cargo Convoy Interrupts . | . . . . Stealth | -11 -10 -10 -7 --------- Run | Yrd Mat Sub Rec Distress Signals 1 | . 1 . . Communications Jammed . | . . . . Distress Signals . | . . . . Times Spotted 40 | . 20 16 4 Peak Tracking Total 6 | . 3 6 3 Tactical Retreats 4 | . 1 3 . Traps | -11 -10 -10 -7 ------- Run | Yrd Mat Sub Rec Traps Triggered 1 | . 1 . . Indirectly . | . . . . Trap Hack Attempts 27 | . 27 . . Triggered . | . . . . Disarmed . | . . . . Reprogrammed 4 | . 4 . . Reused . | . . . . Traps Extracted . | . . . . Installed . | . . . . Triggered . | . . . . Machines | -11 -10 -10 -7 ---------- Run | Yrd Mat Sub Rec Machines Disabled 4 | . 1 3 . Max in Single Turn 3 | . 1 3 . Machines Repaired . | . . . . Machines Dismantled . | . . . . Machines Sabotaged . | . . . . Overloaded Fab Kills . | . . . . Hacking | -11 -10 -10 -7 --------- Run | Yrd Mat Sub Rec Machines Accessed 9 | . 9 . . Terminals 6 | . 6 . . Fabricators . | . . . . Repair Stations 1 | . 1 . . Recycling Units 2 | . 2 . . Scanalyzers . | . . . . Garrison Access . | . . . . Total Hacks 25 | . 25 . . Successful 14 | . 14 . . Failed 11 | . 11 . . Catastrophic . | . . . . Database Lockouts . | . . . . Manual 19 | . 19 . . Terminals 18 | . 18 . . Fabricators . | . . . . Repair Stations 2 | . 2 . . Recycling Units 5 | . 5 . . Scanalyzers . | . . . . Garrison Access . | . . . . Terminal Hacks 2 | . 2 . . Robot Analysis 1 | . 1 . . Locate Traps 1 | . 1 . . Fabricator Hacks . | . . . . Repair Station Hacks 2 | . 2 . . Scan Component 1 | . 1 . . Repair 1 | . 1 . . Recycling Unit Hacks . | . . . . Scanalyzer . | . . . . Garrison Access Hacks . | . . . . Unauthorized Hacks 10 | . 10 . . Terminals 10 | . 10 . . Assimilate 1 | . 1 . . Botnet 3 | . 3 . . Operators 2 | . 2 . . Skim 4 | . 4 . . Fabricators . | . . . . Repair Stations . | . . . . Recycling Units . | . . . . Scanalyzers . | . . . . Garrison Access . | . . . . Data Cores Recovered . | . . . . Used . | . . . . Hacking Detections 9 | . 9 . . Full Trace Events . | . . . . Feedback Events . | . . . . Feedback Blocked . | . . . . Robot Schematics Acquired . | . . . . Robots Built . | . . . . Authchips . | . . . . Time . | . . . . Total Robot Build Rating . | . . . . Part Schematics Acquired . | . . . . Parts Built . | . . . . Authchips . | . . . . Time . | . . . . Total Part Build Rating . | . . . . Part Studies Acquired . | . . . . Parts Repaired 1 | . 1 . . Time 32 | . 32 . . Parts Recycled . | . . . . Recycled Matter . | . . . . Retrieved Matter . | . . . . Retrieved Components . | . . . . Parts Scanalyzed . | . . . . Part Schematics Acquired . | . . . . Parts Damaged . | . . . . Bothacking | -11 -10 -10 -7 ------------ Run | Yrd Mat Sub Rec Used RIF Installer . | . . . . Robots Hacked . | . . . . Non-combat . | . . . . Combat . | . . . . Robot Hacks Applied . | . . . . Relay Couplers Released . | . . . . Fabnet Peak Effective % . | . . . . Robots Rewired . | . . . . Allies Hacked . | . . . . Hacks Repelled . | . . . . Allies | -11 -10 -10 -7 -------- Run | Yrd Mat Sub Rec Total Allies 1 | . 1 . . Largest Group 1 | . 1 1 1 Highest-Rated Group 10 | . 10 10 10 Highest-Rated Ally 10 | . 10 10 10 Total Orders 2 | . 2 . . STAY 1 | . 1 . . FOLLOW 1 | . 1 . . Ally Attacks . | . . . . Total Damage . | . . . . Kills . | . . . . Allies Corrupted . | . . . . Allies Melted . | . . . . X0-1V1 Amusement Gains 2 | . 2 . . Average Entertainment 2 | . 2 1 7 Good Acts 9 | . . 1 8 Bad Acts 11 | . . 3 8 Intel | -11 -10 -10 -7 ------- Run | Yrd Mat Sub Rec Active Infowar (turns) 2616 | 132 2484 . . Seismic 2616 | 132 2484 . . Robot Analysis Total 1 | . 1 . . Derelict Logs Recovered . | . . . . Drone Launches . | . . . . Drone Recoveries . | . . . . Exploration | -11 -10 -10 -7 ------------- Run | Yrd Mat Sub Rec Turns Passed 3403 | 411 2495 385 112 Spaces Moved 1194 | 171 784 185 54 Core 4 | 2 . 2 . Treads 397 | 169 228 . . Legs . | . . . . Wheels 793 | . 556 183 54 Hover . | . . . . Flight . | . . . . Fastest Speed 50 | 50 140 130 130 Average Speed 177 | 158 188 163 130 Slowest Speed 1550 | 160 320 1550 175 Overloaded Moves . | . . . . Propulsion Burnouts . | . . . . Robots Hopped . | . . . . Potential Cave-ins . | . . . . Cave-ins Triggered . | . . . . Exploration Rate (%) 33 | 7 95 14 18 Regions Visited 3 Branch Regions 2 Pre-discovered Areas . | . . . . Known Exits Taken . | . . . . Unknown Exits Taken 3 | 1 1 1 . Scrap Searched . | . . . . Spaces Dug . | . . . . Terrain Destroyed 42 | . . 42 . Melee . | . . . . Projectile . | . . . . AOE 42 | . . 42 . Terrain Rammed . | . . . . Walls Destroyed . | . . . . Machines Disabled . | . . . . Actions | -11 -10 -10 -7 --------- Run | Yrd Mat Sub Rec Total 2285 | 257 1719 235 74 Wait 879 | 46 814 17 2 Move 1191 | 170 783 184 54 Hop . | . . . . Pick Up 31 | 6 23 . 2 Fast Attach 9 | 6 3 . . Attach 11 | 1 2 3 5 Detach . | . . . . Swap 14 | . 10 4 . Drop 8 | . 8 . . Fire 113 | 28 49 27 9 Melee . | . . . . Ram 2 | . . . 2 Kick . | . . . . Crush . | . . . . Escape Stasis . | . . . . Rewire . | . . . . Trap 27 | . 27 . . Miscellaneous . | . . . . Route ------- -11/Scrapyard -10/Materials (discovered 6 exits: [*Mat x3] / [*Min x2] / [*Sub]) -10/Subcaves (discovered 2 exits: [*Mat] / [*Rec]) -7/Recycling (discovered 1 exit: Scr) History --------- Turn | Location | Event 7 | -11/Scrapyard | Discovered new exit (range 15) 412 | -11/Scrapyard | Entered Materials 413 | -10/Materials | Build established: Mutant 1030 | -10/Materials | Discovered new exit (range 4) 1438 | -10/Materials | Discovered new exit (range 9) 1858 | -10/Materials | Repaired Autogun 2059 | -10/Materials | Discovered new exit (range 16) 2259 | -10/Materials | Discovered new exit (range 12) 2862 | -10/Materials | Discovered new exit (range 16) 2880 | -10/Materials | Discovered new exit (range 8) 2896 | -10/Materials | Prayed at D.C.S.S. Altar Unit 2907 | -10/Materials | Entered Subcaves 2907 | -10/Subcaves | Accompanied by 1 ally 3048 | -10/Subcaves | Discovered new exit (range 12) 3174 | -10/Subcaves | Discovered new exit (range 10) 3210 | -10/Subcaves | X0-1V1 sent hostile G-34 Mercenary (x3) 3221 | -10/Subcaves | Core integrity fell below 50% 3292 | -10/Subcaves | Entered Recycling 3292 | -7/Recycling | Accompanied by 1 ally 3292 | -7/Recycling | X0-1V1 added 0b10 threat records associated with you (minor) 3318 | -7/Recycling | Weapon slot count permanently improved by X0-1V1 (+1) 3326 | -7/Recycling | X0-1V1 sent you into danger 3338 | -7/Recycling | Core integrity restored by X0-1V1 (+37) 3339 | -7/Recycling | Identified exit to Scraptown 3339 | -7/Recycling | X0-1V1 revealed exit location to -7/Scraptown 3345 | -7/Recycling | X0-1V1 activates XOMVISION 3391 | -7/Recycling | X0-1V1 mutated your Propulsion slot to Utility slot 3398 | -7/Recycling | Core integrity fell below 20% 3404 | -7/Recycling | Destroyed by Y-54 Guardian with Gatling Laser Last Messages --------------- 03368_ Destroyed Tractor Beam. 03375_ Autogun destroyed. 03376_ Destroyed Com. Wheel. 03377_ Ion Engine destroyed. 03379_ R-06 Scavenger destroyed. 03381_ Autogun destroyed. 03386_ R-06 Scavenger collects Hacking Suite. 03386_ Autogun destroyed. 03391_ Com. Wheel tossed aside. 03391_ X0-1V1: "Evolution hits right when you least expect it." (Propulsion slot mutated into Utility slot) 03391_ Slammed into R-06 Scavenger. 03394_ R-06 Scavenger collects Com. Wheel. 03394_ Com. Wheel destroyed. 03398_ Slammed into Y-54 Guardian. 03400_ Hvy. Assault Rifle destroyed. 03400_ R-06 Scavenger collects Com. Wheel. 03404_ Autogun destroyed. 03404_ X0-1V1 giggles madly! Map ----- +----------------------------------------------------+ | ???????? ? ?????????????????? | | ???????? ??????????????????? | | ???##### ?????????????????? | | ???# ???????????????????? | | ???# #???????????????????? | | ???# ????????????????????? | | ???# ????????????????????? | | ???# ?????????????????????? | | ???# ?????????????????????? | | ???# ??????????????????????? | | ?### ???????????????????????? | | ?#== ???????????????????????? | | ?#== ????????????????????????? | | ??== #????????????????????????? | | ???# r#########????????????????? | | ???# #????????????????? | | ???# #????????????????? | | ???# #????????????????? | | ???# #????????????????? | | ???# #????????????????? | | ???# #????????????????? | | ?### ##???????????????? | | ?#!! T#???????????????? | | ?# ##???????????????? | | ?#!! Yr #????????????????? | | ?### @#########??????????????? | | ???# % r #??????????? | | ??# % #??????????? | | ??## #??????????? | | ???# Y #??????????? | | ???# #?????????? | | ???# ????????? | | ???# ????????? | | ???# ????????? | | ???###### ????????? | | ?????????####### ##"T##?????????? | | ????????????????##??"#??????????? | | ????????????????????????????????? | | ????????????????????????????????? | | | | | | | | | | | | | | | | | | | | | | | +----------------------------------------------------+ Best States ------------- Heat Dissipation 25 Energy Generation 10 Energy Capacity 1050 Matter Stores 300 Matter Capacity 700 Sight Range 19 Terrain Scan Density 10 Evasion (%) 40 Recoil Reduction 2 Item Schematics ----------------- None Robot Schematics ------------------ None Fabricated ------------ Nothing Repaired ---------- Autogun | 58% | -10/Materials Studied --------- None Alien Tech Used ----------------- None Achievements -------------- Do Not Disturb Challenges ------------ None Game ------ Seed PartitionAluminumCompanion Manual? 0 Play Time 00:24:59 Cumulative 55.2 hours Start 2026.08.25 @ 19:18:45 End 2026.08.25 @ 21:16:21 Sessions 2 Manual Loads 0 Difficulty Rogue Special Mode None Game No. 34 Rogue 34 Adventurer 0 Explorer 0 Win Type - Total 0 Types 0/0/0/0/0/0/0/0/0/0 Lore% 45 Gallery% 38 Achievement% 38 Wizard Run 0 Options --------- Layout 1 ASCII 0 Keyboard 0 Movement Mouse Keybinds 0 Fullscreen 1 Font 24/Smallcaps Map View 50x35 Zoom Use 0% Tactical HUD 1 Map Filters NONE Filters NONE Steam 1 RUN: 61bfa71c-ade6-43d5-af35-1c5d7e1c457a